[Event "6th Cattolica Open 2019"]
[Site "Cattolica"]
[Date "2019.06.08"]
[Round "1.10"]
[White "Dev, Shah"]
[Black "Strikovic, Aleksa"]
[Result "0-1"]
[ECO "A41"]
[WhiteElo "2183"]
[BlackElo "2503"]
[Annotator "ChessBase"]
[PlyCount "113"]
[EventDate "2019.06.08"]
[EventType "swiss"]
[EventCountry "ITA"]
[SourceTitle "playchess.com"]
[Source "ChessBase"]
[SourceQuality "1"]
[TimeControl "40/5400+30:900+30"]

1. d4 {[%emt 0:00:13]} d6 {[%emt 0:00:00]} 2. c4 {[%emt 0:00:11]} e5 {[%emt 0:00:00]} 3. dxe5 {[%emt 0:02:45]} dxe5 {[%emt 0:00:00]} 4. Qxd8+ {[%emt 0:00:11]} Kxd8 {[%emt 0:00:03]} 5. Nf3 {[%emt 0:00:18]} f6 {[%emt 0:00:50]} 6. Nc3 {[%emt 0:00:32]} Na6 {[%emt 0:00:48]} 7. Bd2 {[%emt 0:02:01]} c6 {[%emt 0:00:08]} 8. O-O-O {[%emt 0:01:36]} Kc7 {[%emt 0:00:36]} 9. e4 {[%emt 1:26:43]} Bc5 {[%emt 0:08:29]} 10. Be1 {[%emt 0:00:00]} Nh6 {[%emt 0:00:28]} 11. h3 {[%emt 0:00:00]} Nf7 {[%emt 0:00:09]} 12. a3 {[%emt 0:00:00]} Be7 {[%emt 0:00:06]} 13. b4 {[%emt 0:00:00]} Be6 {[%emt 0:01:09]} 14. c5 {[%emt 0:00:00]} Nb8 {[%emt 0:00:15]} 15. Nd2 {[%emt 0:00:00]} b6 {[%emt 0:00:20]} 16. Bc4 {[%emt 0:00:00]} Nd8 {[%emt 0:00:28]} 17. cxb6+ {[%emt 0:00:00]} axb6 {[%emt 0:00:07]} 18. Kb2 {[%emt 0:00:00]} Nd7 {[%emt 0:01:30]} 19. f3 {[%emt 0:00:00]} b5 {[%emt 0:02:07]} 20. Bb3 {[%emt 0:00:00]} Nb6 {[%emt 0:04:17]} 21. Bf2 {[%emt 0:00:00]} h5 {[%emt 0:00:52]} 22. h4 {[%emt 0:00:00]} Ra7 {[%emt 0:11:32]} 23. Rc1 {[%emt 0:00:00]} Kb7 {[%emt 0:00:31]} 24. g3 {[%emt 0:00:00]} Bxb3 {[%emt 0:00:32]} 25. Bxb6 {[%emt 0:00:00]} Kxb6 {[%emt 0:00:09]} 26. Nxb3 {[%emt 0:00:00]} Ne6 {[%emt 0:00:27]} 27. Rhd1 {[%emt 0:00:00]} Rha8 {[%emt 0:06:30]} 28. Ra1 {[%emt 0:00:00]} g6 {[%emt 0:02:39]} 29. Re1 {[%emt 0:00:00]} Nd4 {[%emt 0:17:47]} 30. Nxd4 {[%emt 0:00:00]} exd4 {[%emt 0:00:25]} 31. Ne2 {[%emt 0:00:00]} d3 {[%emt 0:00:36]} 32. Nc3 {[%emt 0:00:00]} d2 {[%emt 0:08:33]} 33. Red1 {[%emt 0:00:00]} Rd7 {[%emt 0:00:12]} 34. Kc2 {[%emt 0:00:00]} Rad8 {[%emt 0:00:01]} 35. Nb1 {[%emt 0:00:00]} Rd3 {[%emt 0:02:45]} 36. Nxd2 {[%emt 0:00:00]} c5 {[%emt 0:00:20]} 37. bxc5+ {[%emt 0:00:00]} Bxc5 {[%emt 0:00:08]} 38. Rab1 {[%emt 0:00:00]} Kc6 {[%emt 0:03:05]} 39. Rb3 {[%emt 0:04:32]} Rxb3 {[%emt 0:00:48]} 40. Kxb3 {[%emt 0:10:58]} Rd3+ {[%emt 0:00:00]} 41. Kc2 {[%emt 0:00:00]} Re3 {[%emt 0:06:40]} 42. Rb1 {[%emt 0:00:00]} Bxa3 {[%emt 0:05:02]} 43. Rb3 {[%emt 0:00:00]} Bc5 {[%emt 0:01:07]} 44. Rxe3 {[%emt 0:00:00]} Bxe3 {[%emt 0:00:03]} 45. Nf1 {[%emt 0:01:42]} Bf2 {[%emt 0:00:37]} 46. Kd3 {[%emt 0:01:19]} Kc5 {[%emt 0:01:08]} 47. f4 {[%emt 0:00:48]} b4 {[%emt 0:01:08]} 48. f5 {[%emt 0:01:01]} gxf5 {[%emt 0:02:21]} 49. exf5 {[%emt 0:00:04]} Kd6 {[%emt 0:02:48]} 50. Nd2 {[%emt 0:03:19]} Ke5 {[%emt 0:03:17]} 51. Ne4 {[%emt 0:00:21]} Be1 {[%emt 0:05:00]} 52. g4 {[%emt 0:00:15]} hxg4 {[%emt 0:00:34]} 53. h5 {[%emt 0:00:07]} Kxf5 {[%emt 0:00:04]} 54. h6 {[%emt 0:00:20]} Kg6 {[%emt 0:00:05]} 55. h7 {[%emt 0:00:04]} Kg7 {[%emt 0:00:03]} 56. Nxf6 {[%emt 0:02:52]} g3 {[%emt 0:00:05]} 57. Kd4 {[%emt 0:11:18]} 0-1

[Event "6th Cattolica Open 2019"]
[Site "Cattolica"]
[Date "2019.06.08"]
[Round "1.11"]
[White "Barseghyan, Harutyun"]
[Black "Bernardi, Ruben"]
[Result "1-0"]
[ECO "E11"]
[WhiteElo "2495"]
[BlackElo "2182"]
[Annotator "ChessBase"]
[PlyCount "55"]
[EventDate "2019.06.08"]
[EventType "swiss"]
[EventCountry "ITA"]
[SourceTitle "playchess.com"]
[Source "ChessBase"]
[SourceQuality "1"]
[TimeControl "40/5400+30:900+30"]

1. d4 {[%emt 0:00:07]} d5 {[%emt 0:00:54]} 2. Nf3 {[%emt 0:02:18]} Nf6 {[%emt 0:00:30]} 3. c4 {[%emt 0:00:45]} e6 {[%emt 0:00:14]} 4. g3 {[%emt 0:00:16]} Bb4+ {[%emt 0:01:52]} 5. Bd2 {[%emt 0:00:27]} Be7 {[%emt 0:03:17]} 6. Bg2 {[%emt 0:00:21]} O-O {[%emt 0:02:53]} 7. O-O {[%emt 0:00:22]} c6 {[%emt 0:10:25]} 8. Na3 {[%emt 0:00:46]} Ne4 {[%emt 0:04:41]} 9. Bf4 {[%emt 0:05:36]} Nd7 {[%emt 0:17:39]} 10. Rc1 {[%emt 0:02:35]} g5 {[%emt 0:13:38]} 11. Bd2 {[%emt 0:00:10]} f5 {[%emt 0:00:42]} 12. Nc2 {[%emt 0:00:47]} Kh8 {[%emt 0:01:32]} 13. Bb4 {[%emt 0:00:28]} a5 {[%emt 0:02:14]} 14. Bxe7 {[%emt 0:00:08]} Qxe7 {[%emt 0:00:05]} 15. Nce1 {[%emt 0:00:59]} g4 {[%emt 0:06:54]} 16. Nd2 {[%emt 0:00:15]} Ng5 {[%emt 0:01:22]} 17. Nd3 {[%emt 0:01:49]} Qg7 {[%emt 0:05:17]} 18. e3 {[%emt 0:00:47]} Nf6 {[%emt 0:01:19]} 19. Nf4 {[%emt 0:02:15]} h5 {[%emt 0:04:08]} 20. Qb3 {[%emt 0:01:37]} h4 {[%emt 0:03:30]} 21. Qa3 {[%emt 0:01:47]} Rf7 {[%emt 0:00:04]} 22. Qd6 {[%emt 0:05:22]} Bd7 {[%emt 0:00:41]} 23. gxh4 {[%emt 0:03:37]} Nf3+ {[%emt 0:01:47]} 24. Bxf3 {[%emt 0:00:14]} gxf3+ {[%emt 0:00:10]} 25. Kh1 {[%emt 0:00:16]} Rg8 {[%emt 0:03:46]} 26. Nxf3 {[%emt 0:03:57]} Qg4 {[%emt 0:00:48]} 27. Ne5 {[%emt 0:00:37]} Qxh4 {[%emt 0:03:21]} 28. Neg6+ {[%emt 0:00:58]} 1-0

[Event "6th Cattolica Open 2019"]
[Site "Cattolica"]
[Date "2019.06.09"]
[Round "2.4"]
[White "Vovk, Yuri"]
[Black "Yu, Jennifer"]
[Result "1-0"]
[ECO "C90"]
[WhiteElo "2586"]
[BlackElo "2369"]
[Annotator "ChessBase"]
[PlyCount "75"]
[EventDate "2019.06.08"]
[EventType "swiss"]
[EventCountry "ITA"]
[SourceTitle "playchess.com"]
[Source "ChessBase"]
[SourceQuality "1"]
[TimeControl "40/5400+30:900+30"]

1. e4 {[%emt 0:00:26]} e5 {[%emt 0:00:00]} 2. Nf3 {[%emt 0:00:07]} Nc6 {[%emt 0:00:00]} 3. Bb5 {[%emt 0:02:09]} a6 {[%emt 0:00:08]} 4. Ba4 {[%emt 0:00:07]} Nf6 {[%emt 0:00:08]} 5. O-O {[%emt 0:00:06]} Be7 {[%emt 0:00:25]} 6. Re1 {[%emt 0:00:32]} b5 {[%emt 0:00:58]} 7. Bb3 {[%emt 0:00:07]} d6 {[%emt 0:00:05]} 8. a4 {[%emt 0:01:05]} Bg4 {[%emt 0:09:58]} 9. c3 {[%emt 0:00:29]} O-O {[%emt 0:01:03]} 10. h3 {[%emt 0:03:56]} Bh5 {[%emt 0:03:28]} 11. d3 {[%emt 0:01:37]} Na5 {[%emt 0:05:32]} 12. Ba2 {[%emt 0:02:17]} c5 {[%emt 0:00:45]} 13. Bg5 {[%emt 0:07:28]} b4 {[%emt 0:15:33]} 14. Bxf6 {[%emt 0:03:38]} Bxf6 {[%emt 0:00:04]} 15. Bd5 {[%emt 0:00:09]} Rb8 {[%emt 0:05:03]} 16. Nbd2 {[%emt 0:01:17]} Bg5 {[%emt 0:05:06]} 17. g4 {[%emt 0:03:01]} Bg6 {[%emt 0:05:50]} 18. Nxg5 {[%emt 0:05:04]} Qxg5 {[%emt 0:00:07]} 19. Nf3 {[%emt 0:01:32]} Qe7 {[%emt 0:07:31]} 20. h4 {[%emt 0:09:35]} h6 {[%emt 0:09:54]} 21. Kg2 {[%emt 0:06:02]} Rfc8 {[%emt 0:04:13]} 22. Qe2 {[%emt 0:02:20]} Kf8 {[%emt 0:01:27]} 23. Qe3 {[%emt 0:06:19]} h5 {[%emt 0:10:29]} 24. Ng5 {[%emt 0:03:52]} Qd7 {[%emt 0:02:56]} 25. gxh5 {[%emt 0:01:02]} Bxh5 {[%emt 0:01:54]} 26. Qg3 {[%emt 0:01:46]} Ke8 {[%emt 0:01:03]} 27. Re3 {[%emt 0:00:45]} Nc6 {[%emt 0:01:23]} 28. Kh2 {[%emt 0:02:03]} Nd8 {[%emt 0:01:31]} 29. Rg1 {[%emt 0:02:28]} Rc7 {[%emt 0:01:23]} 30. Nh7 {[%emt 0:01:14]} Bg6 {[%emt 0:03:26]} 31. h5 {[%emt 0:02:06]} Bxh7 {[%emt 0:00:41]} 32. Qxg7 {[%emt 0:00:09]} bxc3 {[%emt 0:02:11]} 33. Qxh7 {[%emt 0:01:17]} Rxb2 {[%emt 0:01:16]} 34. Rf3 {[%emt 0:00:19]} Qe7 {[%emt 0:00:14]} 35. Rg8+ {[%emt 0:01:50]} Kd7 {[%emt 0:00:04]} 36. Qf5+ {[%emt 0:00:49]} Ne6 {[%emt 0:00:07]} 37. Qxf7 {[%emt 0:00:14]} c2 {[%emt 0:00:39]} 38. Rf6 {[%emt 0:26:50]} 1-0

[Event "6th Cattolica Open 2019"]
[Site "Cattolica"]
[Date "2019.06.09"]
[Round "2.5"]
[White "Anand Nadar"]
[Black "Martinez Alcantara, Jose Eduardo"]
[Result "1/2-1/2"]
[ECO "B92"]
[WhiteElo "2366"]
[BlackElo "2583"]
[Annotator "ChessBase"]
[PlyCount "105"]
[EventDate "2019.06.08"]
[EventType "swiss"]
[EventCountry "ITA"]
[SourceTitle "playchess.com"]
[Source "ChessBase"]
[SourceQuality "1"]
[TimeControl "40/5400+30:900+30"]

1. e4 {[%emt 0:00:00]} c5 {[%emt 0:00:00]} 2. Nf3 {[%emt 0:00:00]} d6 {[%emt 0:00:13]} 3. d4 {[%emt 0:00:02]} cxd4 {[%emt 0:00:06]} 4. Nxd4 {[%emt 0:04:56]} Nf6 {[%emt 0:00:07]} 5. Nc3 {[%emt 0:00:05]} a6 {[%emt 0:00:05]} 6. Be2 {[%emt 0:00:04]} e5 {[%emt 0:00:07]} 7. Nf3 {[%emt 0:00:03]} Nbd7 {[%emt 0:02:34]} 8. a4 {[%emt 0:02:28]} h6 {[%emt 0:09:31]} 9. O-O {[%emt 0:07:19]} Nc5 {[%emt 0:02:12]} 10. Nd2 {[%emt 0:02:51]} Be6 {[%emt 0:00:35]} 11. b3 {[%emt 0:11:33]} Qc7 {[%emt 0:04:35]} 12. Bb2 {[%emt 0:00:59]} Be7 {[%emt 0:01:43]} 13. Re1 {[%emt 0:05:46]} O-O {[%emt 0:02:33]} 14. Bf3 {[%emt 0:01:56]} Qc6 {[%emt 0:06:11]} 15. a5 {[%emt 0:04:24]} Rac8 {[%emt 0:06:24]} 16. Nf1 {[%emt 0:08:40]} Rfe8 {[%emt 0:07:40]} 17. b4 {[%emt 0:11:56]} Ncd7 {[%emt 0:00:20]} 18. Ne3 {[%emt 0:00:12]} b5 {[%emt 0:03:33]} 19. Ncd5 {[%emt 0:05:39]} Bf8 {[%emt 0:04:40]} 20. Rc1 {[%emt 0:03:05]} Qb7 {[%emt 0:03:48]} 21. Qd2 {[%emt 0:03:34]} Bxd5 {[%emt 0:05:37]} 22. exd5 {[%emt 0:01:22]} g6 {[%emt 0:00:31]} 23. Be2 {[%emt 0:08:33]} h5 {[%emt 0:06:00]} 24. c4 {[%emt 0:00:27]} bxc4 {[%emt 0:00:09]} 25. Bxc4 {[%emt 0:02:21]} Bh6 {[%emt 0:03:51]} 26. Ba3 {[%emt 0:00:06]} Qa7 {[%emt 0:12:07]} 27. Qe2 {[%emt 0:02:34]} Ra8 {[%emt 0:09:46]} 28. Bb3 {[%emt 0:02:02]} Ne4 {[%emt 0:04:12]} 29. Rc6 {[%emt 0:00:48]} Nb8 {[%emt 0:03:07]} 30. Qc2 {[%emt 0:05:25]} Nf6 {[%emt 0:02:10]} 31. Rxd6 {[%emt 0:01:55]} Nbd7 {[%emt 0:00:01]} 32. Rc6 {[%emt 0:00:13]} Rab8 {[%emt 0:00:45]} 33. d6 {[%emt 0:00:41]} Kg7 {[%emt 0:00:21]} 34. Qc4 {[%emt 0:00:15]} Rf8 {[%emt 0:00:23]} 35. Rxa6 {[%emt 0:00:16]} Qd4 {[%emt 0:00:13]} 36. Qxd4 {[%emt 0:01:43]} exd4 {[%emt 0:00:00]} 37. Nd5 {[%emt 0:02:06]} Bd2 {[%emt 0:00:56]} 38. Rd1 {[%emt 0:00:34]} Nxd5 {[%emt 0:00:01]} 39. Bxd5 {[%emt 0:00:35]} Bxb4 {[%emt 0:00:05]} 40. Bb2 {[%emt 0:00:00]} Bc5 {[%emt 0:00:00]} 41. Ba1 {[%emt 0:05:29]} Rfc8 {[%emt 0:05:44]} 42. g3 {[%emt 0:05:32]} Rb4 {[%emt 0:00:40]} 43. Rc6 {[%emt 0:02:03]} Rxc6 {[%emt 0:02:05]} 44. Bxc6 {[%emt 0:00:02]} Ne5 {[%emt 0:00:01]} 45. Bd5 {[%emt 0:00:56]} Kf6 {[%emt 0:05:31]} 46. Kg2 {[%emt 0:02:01]} g5 {[%emt 0:01:33]} 47. a6 {[%emt 0:00:44]} g4 {[%emt 0:03:00]} 48. Rc1 {[%emt 0:02:20]} Bb6 {[%emt 0:00:01]} 49. Rd1 {[%emt 0:02:05]} Ra4 {[%emt 0:01:59]} 50. Bb3 {[%emt 0:00:26]} Rb4 {[%emt 0:01:04]} 51. Bd5 {[%emt 0:00:01]} Ra4 {[%emt 0:00:06]} 52. Bb3 {[%emt 0:00:11]} Rb4 {[%emt 0:00:12]} 53. Bd5 {[%emt 0:00:24]} 1/2-1/2

[Event "6th Cattolica Open 2019"]
[Site "Cattolica"]
[Date "2019.06.09"]
[Round "2.6"]
[White "Basso, Pier Luigi"]
[Black "Drazic, Sinisa"]
[Result "1-0"]
[ECO "E11"]
[WhiteElo "2539"]
[BlackElo "2365"]
[Annotator "ChessBase"]
[PlyCount "112"]
[EventDate "2019.06.08"]
[EventType "swiss"]
[EventCountry "ITA"]
[SourceTitle "playchess.com"]
[Source "ChessBase"]
[SourceQuality "1"]
[TimeControl "40/5400+30:900+30"]

1. d4 {[%emt 0:10:17]} Nf6 {[%emt 0:00:00]} 2. c4 {[%emt 0:01:45]} e6 {[%emt 0:00:00]} 3. Nf3 {[%emt 0:00:03]} Bb4+ {[%emt 0:00:00]} 4. Bd2 {[%emt 0:00:49]} c5 {[%emt 0:00:00]} 5. Bxb4 {[%emt 0:00:47]} cxb4 {[%emt 0:00:00]} 6. a3 {[%emt 0:00:07]} bxa3 {[%emt 0:00:00]} 7. Rxa3 {[%emt 0:00:04]} b6 {[%emt 0:00:13]} 8. Nc3 {[%emt 0:02:24]} O-O {[%emt 0:01:21]} 9. e4 {[%emt 0:07:24]} d6 {[%emt 0:00:12]} 10. Bd3 {[%emt 0:02:51]} Bb7 {[%emt 0:06:28]} 11. e5 {[%emt 0:12:26]} dxe5 {[%emt 0:00:29]} 12. dxe5 {[%emt 0:00:10]} Ng4 {[%emt 0:03:46]} 13. Qe2 {[%emt 0:15:46]} Nd7 {[%emt 0:34:06]} 14. Be4 {[%emt 0:02:32]} Bxe4 {[%emt 0:00:06]} 15. Qxe4 {[%emt 0:00:33]} h5 {[%emt 0:00:05]} 16. O-O {[%emt 0:07:54]} Nc5 {[%emt 0:00:17]} 17. Qe2 {[%emt 0:00:35]} Qd3 {[%emt 0:00:26]} 18. h3 {[%emt 0:03:32]} Qxe2 {[%emt 0:00:19]} 19. Nxe2 {[%emt 0:00:03]} Nh6 {[%emt 0:00:07]} 20. b4 {[%emt 0:03:31]} Nb7 {[%emt 0:00:49]} 21. Ra6 {[%emt 0:02:28]} Rfc8 {[%emt 0:00:51]} 22. Rfa1 {[%emt 0:00:47]} Rxc4 {[%emt 0:00:10]} 23. Rxa7 {[%emt 0:02:20]} Rb8 {[%emt 0:00:24]} 24. Ra8 {[%emt 0:03:04]} Rcc8 {[%emt 0:04:59]} 25. Rxb8 {[%emt 0:00:27]} Rxb8 {[%emt 0:00:02]} 26. Ned4 {[%emt 0:04:10]} Nd8 {[%emt 0:02:08]} 27. Ra7 {[%emt 0:03:29]} f6 {[%emt 0:07:59]} 28. b5 {[%emt 0:02:28]} Nhf7 {[%emt 0:00:48]} 29. exf6 {[%emt 0:01:48]} gxf6 {[%emt 0:00:12]} 30. Nc6 {[%emt 0:01:33]} Rb7 {[%emt 0:15:56]} 31. Ra8 {[%emt 0:01:08]} Rd7 {[%emt 0:00:01]} 32. Rb8 {[%emt 0:01:47]} Rb7 {[%emt 0:00:10]} 33. Rc8 {[%emt 0:00:42]} Rd7 {[%emt 0:00:03]} 34. Rb8 {[%emt 0:00:06]} Rb7 {[%emt 0:00:02]} 35. Rxd8+ {[%emt 0:05:40]} Nxd8 {[%emt 0:00:04]} 36. Nxd8 {[%emt 0:00:02]} Re7 {[%emt 0:00:09]} 37. Nd4 {[%emt 0:01:24]} e5 {[%emt 0:00:11]} 38. Nf5 {[%emt 0:00:09]} Rd7 {[%emt 0:01:02]} 39. Nc6 {[%emt 0:00:01]} Rd1+ {[%emt 0:03:24]} 40. Kh2 {[%emt 0:00:00]} Kf7 {[%emt 0:00:00]} 41. Na7 {[%emt 0:04:15]} Rd2 {[%emt 0:08:52]} 42. f3 {[%emt 0:01:51]} Rd7 {[%emt 0:29:49]} 43. Nc8 {[%emt 0:01:24]} Ke6 {[%emt 0:00:00]} 44. Nxb6 {[%emt 0:02:06]} Rb7 {[%emt 0:00:00]} 45. Nc4 {[%emt 0:00:02]} Rxb5 {[%emt 0:00:00]} 46. Ng7+ {[%emt 0:01:14]} Ke7 {[%emt 0:00:00]} 47. Ne3 {[%emt 0:02:59]} Kf7 {[%emt 0:00:00]} 48. Nxh5 {[%emt 0:00:16]} e4 {[%emt 0:00:00]} 49. Nf4 {[%emt 0:04:58]} Rb3 {[%emt 0:00:00]} 50. Nfd5 {[%emt 0:00:14]} exf3 {[%emt 0:00:00]} 51. gxf3 {[%emt 0:00:57]} Ke6 {[%emt 0:00:00]} 52. f4 {[%emt 0:02:08]} Rb7 {[%emt 0:00:00]} 53. Kg3 {[%emt 0:00:21]} Rg7+ {[%emt 0:00:00]} 54. Kf3 {[%emt 0:00:10]} Rh7 {[%emt 0:00:00]} 55. f5+ {[%emt 0:00:13]} Ke5 {[%emt 0:00:00]} 56. Nf4 {[%emt 0:00:07]} Rh5 {[%emt 0:07:00] Ke4+ Kd5+} 1-0

[Event "6th Cattolica Open 2019"]
[Site "Cattolica"]
[Date "2019.06.09"]
[Round "2.9"]
[White "Guerrero Sierra, Juan Carlos"]
[Black "Barseghyan, Harutyun"]
[Result "0-1"]
[ECO "A58"]
[WhiteElo "2290"]
[BlackElo "2495"]
[Annotator "ChessBase"]
[PlyCount "96"]
[EventDate "2019.06.08"]
[EventType "swiss"]
[EventCountry "ITA"]
[SourceTitle "playchess.com"]
[Source "ChessBase"]
[SourceQuality "1"]
[TimeControl "40/5400+30:900+30"]

1. d4 {[%emt 0:01:25]} Nf6 {[%emt 0:00:00]} 2. Nf3 {[%emt 0:00:29]} c5 {[%emt 0:00:00]} 3. d5 {[%emt 0:01:16]} b5 {[%emt 0:00:00]} 4. c4 {[%emt 0:01:28]} g6 {[%emt 0:00:46]} 5. cxb5 {[%emt 0:00:50]} a6 {[%emt 0:00:16]} 6. bxa6 {[%emt 0:00:15]} Bg7 {[%emt 0:01:10]} 7. Nc3 {[%emt 0:00:19]} Bxa6 {[%emt 0:04:03]} 8. g3 {[%emt 0:00:05]} d6 {[%emt 0:00:16]} 9. Bg2 {[%emt 0:00:06]} Nfd7 {[%emt 0:02:33]} 10. O-O {[%emt 0:01:10]} Nb6 {[%emt 0:00:09]} 11. Qc2 {[%emt 0:01:14]} N8d7 {[%emt 0:00:19]} 12. Rd1 {[%emt 0:00:29]} O-O {[%emt 0:00:28]} 13. e4 {[%emt 0:20:17]} Nc4 {[%emt 0:00:52]} 14. h3 {[%emt 0:06:05]} Qa5 {[%emt 0:01:19]} 15. a4 {[%emt 0:06:33]} Rfb8 {[%emt 0:01:06]} 16. Ra2 {[%emt 0:00:37]} Qb4 {[%emt 0:05:52]} 17. Bf1 {[%emt 0:19:00]} Nde5 {[%emt 0:07:35]} 18. Ne1 {[%emt 0:02:21]} Na5 {[%emt 0:09:11]} 19. Bxa6 {[%emt 0:05:56]} Rxa6 {[%emt 0:00:09]} 20. Qe2 {[%emt 0:00:13]} Qc4 {[%emt 0:02:16]} 21. f4 {[%emt 0:04:08]} Qxe2 {[%emt 0:00:58]} 22. Nxe2 {[%emt 0:00:05]} Nec4 {[%emt 0:00:08]} 23. Nd3 {[%emt 0:01:32]} Nb3 {[%emt 0:01:37]} 24. f5 {[%emt 0:01:36]} Kf8 {[%emt 0:06:20]} 25. Bf4 {[%emt 0:00:54]} Rba8 {[%emt 0:02:23]} 26. Nec1 {[%emt 0:01:19]} Rb6 {[%emt 0:04:39]} 27. Kg2 {[%emt 0:02:59]} Nd4 {[%emt 0:05:17]} 28. fxg6 {[%emt 0:02:18]} hxg6 {[%emt 0:00:02]} 29. Re1 {[%emt 0:01:17]} Rab8 {[%emt 0:08:23]} 30. a5 {[%emt 0:01:02]} Rb5 {[%emt 0:00:01]} 31. a6 {[%emt 0:00:25]} Ra8 {[%emt 0:00:15]} 32. e5 {[%emt 0:04:35]} dxe5 {[%emt 0:00:01]} 33. Nxe5 {[%emt 0:00:28]} Bxe5 {[%emt 0:00:17]} 34. Bxe5 {[%emt 0:00:02]} Nc2 {[%emt 0:01:13]} 35. Re4 {[%emt 0:04:17]} Nxe5 {[%emt 0:00:19]} 36. Rxe5 {[%emt 0:00:09]} Nb4 {[%emt 0:00:02]} 37. Ra3 {[%emt 0:02:19]} Rxa6 {[%emt 0:00:04]} 38. Ne2 {[%emt 0:07:40]} Rxa3 {[%emt 0:02:02]} 39. bxa3 {[%emt 0:00:04]} Nc2 {[%emt 0:00:09]} 40. Re4 {[%emt 0:00:00]} Nxa3 {[%emt 0:00:00]} 41. Ra4 {[%emt 0:02:20]} Nc2 {[%emt 0:01:22]} 42. Nc3 {[%emt 0:00:47]} Rb3 {[%emt 0:01:35]} 43. Ne4 {[%emt 0:01:07]} Ne3+ {[%emt 0:02:43]} 44. Kf2 {[%emt 0:01:17]} Nd1+ {[%emt 0:05:12]} 45. Kg2 {[%emt 0:01:01]} c4 {[%emt 0:01:12]} 46. Ra8+ {[%emt 0:03:44]} Kg7 {[%emt 0:00:02]} 47. d6 {[%emt 0:00:06]} exd6 {[%emt 0:00:17]} 48. Nxd6 {[%emt 0:00:05]} c3 {[%emt 0:00:43]} 0-1

[Event "6th Cattolica Open 2019"]
[Site "Cattolica"]
[Date "2019.06.09"]
[Round "2.10"]
[White "Sonis, Francesco"]
[Black "Lumachi, Gabriele"]
[Result "1-0"]
[ECO "D31"]
[WhiteElo "2494"]
[BlackElo "2286"]
[Annotator "ChessBase"]
[PlyCount "131"]
[EventDate "2019.06.08"]
[EventType "swiss"]
[EventCountry "ITA"]
[SourceTitle "playchess.com"]
[Source "ChessBase"]
[SourceQuality "1"]
[TimeControl "40/5400+30:900+30"]

1. c4 {[%emt 0:00:00]} e6 {[%emt 0:00:00]} 2. d4 {[%emt 0:00:00]} d5 {[%emt 0:00:00]} 3. Nc3 {[%emt 0:00:00]} a6 {[%emt 0:00:00]} 4. cxd5 {[%emt 0:00:00]} exd5 {[%emt 0:00:00]} 5. Bf4 {[%emt 0:00:05]} Nf6 {[%emt 0:00:44]} 6. e3 {[%emt 0:00:16]} Bd6 {[%emt 0:01:26]} 7. Bxd6 {[%emt 0:01:50]} Qxd6 {[%emt 0:00:14]} 8. Bd3 {[%emt 0:00:08]} O-O {[%emt 0:00:58]} 9. h3 {[%emt 0:02:50]} Re8 {[%emt 0:04:07]} 10. Nf3 {[%emt 0:05:13]} Nbd7 {[%emt 0:06:23]} 11. O-O {[%emt 0:01:26]} b6 {[%emt 0:06:22]} 12. Qb3 {[%emt 0:13:15]} c5 {[%emt 0:15:33]} 13. Qa3 {[%emt 0:00:04]} Bb7 {[%emt 0:02:19]} 14. Rfd1 {[%emt 0:03:20]} Qc7 {[%emt 0:04:33]} 15. dxc5 {[%emt 0:04:01]} bxc5 {[%emt 0:00:18]} 16. Bf1 {[%emt 0:05:40]} Nf8 {[%emt 0:03:36]} 17. Na4 {[%emt 0:00:52]} Ne6 {[%emt 0:03:03]} 18. Rac1 {[%emt 0:00:47]} Ne4 {[%emt 0:04:58]} 19. Nd4 {[%emt 0:14:53]} c4 {[%emt 0:12:57]} 20. Nc3 {[%emt 0:03:12]} N6c5 {[%emt 0:02:21]} 21. b3 {[%emt 0:05:07]} Nxc3 {[%emt 0:09:23]} 22. Rxc3 {[%emt 0:00:05]} Ne4 {[%emt 0:00:33]} 23. Rc2 {[%emt 0:00:05]} Nd6 {[%emt 0:02:30]} 24. Qa4 {[%emt 0:02:29]} Qe7 {[%emt 0:07:09]} 25. bxc4 {[%emt 0:01:44]} dxc4 {[%emt 0:00:13]} 26. Bxc4 {[%emt 0:01:15]} Nxc4 {[%emt 0:04:49]} 27. Rxc4 {[%emt 0:02:17]} Qg5 {[%emt 0:03:59]} 28. Nc6 {[%emt 0:02:15]} Re6 {[%emt 0:01:10]} 29. Qa5 {[%emt 0:05:57]} Qb5 {[%emt 0:01:58]} 30. Rc5 {[%emt 0:04:20]} Qe2 {[%emt 0:00:42]} 31. Qd8+ {[%emt 0:10:20]} Re8 {[%emt 0:00:53]} 32. Qd2 {[%emt 0:00:04]} Qxd2 {[%emt 0:01:10]} 33. Rxd2 {[%emt 0:00:04]} Kf8 {[%emt 0:00:37]} 34. Na5 {[%emt 0:01:23]} Bc8 {[%emt 0:00:16]} 35. Nb3 {[%emt 0:01:27]} Rb8 {[%emt 0:01:02]} 36. Rc6 {[%emt 0:01:26]} Re6 {[%emt 0:01:02]} 37. Nd4 {[%emt 0:01:48]} Re8 {[%emt 0:00:36]} 38. Rdc2 {[%emt 0:00:33]} g6 {[%emt 0:00:21]} 39. Kh2 {[%emt 0:00:14]} Kg7 {[%emt 0:00:35]} 40. Rc7 {[%emt 0:00:00]} Ra8 {[%emt 0:00:00]} 41. R2c5 {[%emt 0:03:08]} Kf8 {[%emt 0:06:05]} 42. a4 {[%emt 0:02:20]} a5 {[%emt 0:01:19]} 43. Nc6 {[%emt 0:01:52]} Be6 {[%emt 0:01:56]} 44. Nxa5 {[%emt 0:04:59]} Ra6 {[%emt 0:00:19]} 45. Rb5 {[%emt 0:01:02]} Rea8 {[%emt 0:00:38]} 46. Nb3 {[%emt 0:00:39]} Rxa4 {[%emt 0:04:09]} 47. Nc5 {[%emt 0:00:13]} R4a7 {[%emt 0:00:18]} 48. Nxe6+ {[%emt 0:00:07]} fxe6 {[%emt 0:00:02]} 49. Rb8+ {[%emt 0:00:47]} Rxb8 {[%emt 0:00:01]} 50. Rxa7 {[%emt 0:00:05]} h5 {[%emt 0:02:32]} 51. Kg3 {[%emt 0:00:04]} Rb4 {[%emt 0:00:22]} 52. f4 {[%emt 0:00:29]} e5 {[%emt 0:01:34]} 53. fxe5 {[%emt 0:00:58]} Re4 {[%emt 0:00:06]} 54. Kf3 {[%emt 0:00:19]} Rxe5 {[%emt 0:00:05]} 55. e4 {[%emt 0:00:02]} Rb5 {[%emt 0:00:52]} 56. h4 {[%emt 0:01:32]} Kg8 {[%emt 0:01:34]} 57. Kf4 {[%emt 0:00:09]} Rc5 {[%emt 0:01:09]} 58. e5 {[%emt 0:01:37]} Kf8 {[%emt 0:01:12]} 59. g3 {[%emt 0:00:17]} Rb5 {[%emt 0:00:26]} 60. e6 {[%emt 0:00:46]} Rf5+ {[%emt 0:00:57]} 61. Ke4 {[%emt 0:00:05]} Rb5 {[%emt 0:00:18]} 62. Rf7+ {[%emt 0:00:07]} Ke8 {[%emt 0:00:31]} 63. Rg7 {[%emt 0:00:10]} Ra5 {[%emt 0:00:18]} 64. Rxg6 {[%emt 0:00:12]} Ke7 {[%emt 0:00:41]} 65. Kf4 {[%emt 0:00:05]} Ra3 {[%emt 0:00:38]} 66. Rg5 {[%emt 0:00:17]} 1-0